Workbook

Sheet Etapa 4A 0424
B7: REGULARIZACIÓN MARACANÁ SUR | E7: ETAPA 4A | I7: 2024-09-10
C8: OBRA DIRECTA
D9: Unidad | E9: Cantidad | F9: Unitario | G9: Precio Total | H9: Unitario Aportes | I9: Aportes Sociales
B10: 1 | C10: IMPLANTACIÓN GENERAL DE OBRA
B11: 1.01 | C11: Limpieza del terreno (zona de obrador) | D11: m2 | E11: 150 | G11: =E11*F11 -> 0 | I11: =E11*H11 -> 0
B12: 1.02 | C12: Cerco malla galvanizada (h=2mts) | D12: m | E12: 60 | G12: 0 | I12: 0
B13: 1.03 | C13: Cartel de obra (4,00x3,00 m) | D13: un | E13: 1 | G13: 0 | I13: 0
B14: 1.04 | C14: Oficina de empresa constructora | D14: m2 | E14: 15 | G14: 0 | I14: 0
B15: 1.05 | C15: Oficina para dirección de obra (9m2)con baño | D15: m2 | E15: 9 | G15: 0 | I15: 0
B16: 1.06 | C16: Instalación para el personal (comedor, vestuario y SSHH) | D16: m2 | E16: 40 | G16: 0 | I16: 0
B17: 1.07 | C17: Instalación provisoria de obra (Sanitaria) | D17: global | E17: 1 | G17: 0 | I17: 0
B18: 1.08 | C18: Instalación provisoria de obra (Eléctrica) | D18: global | E18: 1 | G18: 0 | I18: 0
B19: 1.09 | C19: Trámites ante organismos previos al comienzo de la obra | D19: global | E19: 1 | G19: 0 | I19: 0
C20: SUBTOTAL | G20: =SUM(G11:G19) -> 0 | I20: =SUM(I11:I19) -> 0
B21: 2 | C21: RED VIAL
B22: 2.01 | C22: Excavación no clasificada (tosca) | D22: m3 | E22: 4691 | G22: =E22*F22 -> 0 | I22: =E22*H22 -> 0
B23: 2,01,1 | C23: Sub base granular con CBR>10 | D23: m3 | E23: 575 | G23: =E23*F23 -> 0 | I23: =E23*H23 -> 0
B24: 2,01,2 | C24: Excavación no clasificada a deposito (tierra limpia) | D24: m3 | E24: 425 | G24: 0 | I24: 0
B25: 2,01,3 | C25: Excavación no clasificada a deposito (relleno contaminado) | D25: m3 | E25: 275 | G25: 0 | I25: 0
B26: 2.02 | C26: Base granular con CBR>80% (con transporte) | D26: m3 | E26: 2235 | G26: 0 | I26: 0
B27: 2.03 | C27: Suministro de cemento asfáltico | D27: ton | E27: 48 | G27: 0 | I27: 0
B28: 2.04 | C28: Suministro de diluidos asfálticos | D28: m3 | E28: 7 | G28: 0 | I28: 0
B29: 2.05 | C29: Mezcla asfáltica para carpeta de rodadura | D29: ton | E29: 930 | G29: 0 | I29: 0
B30: 2.06 | C30: Ejecución de riego bituminoso de imprimación | D30: m2 | E30: 6900 | G30: 0 | I30: 0
B31: 2.07 | C31: Pavimento de hormigón simple con armadura de 7cm de espesor (veredas) | D31: m2 | E31: 2660 | G31: 0 | I31: 0
B32: 2.08 | C32: Pavimento de hormigón simple con armadura de 7cm de espesor (acc. vehicular) | D32: m2 | E32: 355 | G32: 0 | I32: 0
B33: 2.09 | C33: Cordón de hormigón simple | D33: m | E33: 0 | G33: 0 | I33: 0
B34: 2.1 | C34: Cordón cuneta de hormigón armado | D34: m | E34: 898 | G34: 0 | I34: 0
B35: 2.11 | C35: Badenes de hormigón armado | D35: m | E35: 123 | G35: 0 | I35: 0
C36: SUBTOTAL | G36: =SUM(G22:G35) -> 0 | I36: =SUM(I22:I35) -> 0
B37: 3 | C37: DESAGÜES PLUVIALES
B38: 3.01 | C38: Colector 01 (Oficial 1 y Paralela a Carlos Gardel)
B39: 3.02 | C39: Suministro e instalación de tuberías Ø600 Prof. < 2m | D39: m | E39: 78 | G39: =E39*F39 -> 0 | I39: =E39*H39 -> 0
B40: 3.03 | C40: Suministro e instalación de tuberías Ø800 Prof. < 2m | D40: m | E40: 137 | G40: 0 | I40: 0
B41: 3.04 | C41: Registros Tipo IM Ø1.20 Prof. < 2m | D41: u | E41: 2 | G41: 0 | I41: 0
B42: 3,,04,1 | C42: Registros Tipo IM Ø1.20 Prof. > 2m | D42: u | E42: 2
B43: 3.05 | C43: Suministro e instalación de tuberías Ø300 (conexiones BT) | D43: m | E43: 8 | G43: 0 | I43: 0
B44: 3.06 | C44: Suministro e instalación de tuberías Ø500 (conexiones BT) | D44: m | E44: 4 | G44: 0 | I44: 0
B45: 3.07 | C45: Bocas de tormenta L 2m | D45: u | E45: 0 | G45: 0 | I45: 0
B46: 3.08 | C46: Bocas de tormenta L3m | D46: u | E46: 2 | G46: 0 | I46: 0
B47: 3.09 | C47: Bocas de tormenta L 4m | D47: u | E47: 1 | G47: 0 | I47: 0
B48: 3.08 | C48: Colector 02 (Oficial 1)
B49: 3.09 | C49: Suministro e instalación de tuberías Ø500 Prof. < 2m | D49: m | E49: 120 | G49: =E49*F49 -> 0 | I49: =E49*H49 -> 0
B50: 3.1 | C50: Suministro e instalación de tuberías Ø600 Prof. < 2m | D50: m | E50: 45 | G50: 0 | I50: 0
B51: 3.11 | C51: Registros Tipo IM Ø1.20 Prof. < 2m | D51: u | E51: 4 | G51: 0 | I51: 0
B52: 3.12 | C52: Suministro e instalación de tuberías Ø300 (conexiones BT) | D52: m | E52: 12 | G52: 0 | I52: 0
B53: 3.13 | C53: Protección de tubería losa H.A. por debajo de -0,90 m | D53: m3 | E53: =17*0.4 -> 6.8 | G53: 0 | I53: 0
B54: 3.14 | C54: Bocas de tormenta L 2m | D54: u | E54: 1 | G54: 0 | I54: 0
B55: 3.15 | C55: Bocas de tormenta L 3m | D55: u | E55: 3 | G55: 0 | I55: 0
B56: 3.16 | C56: Colector 04 (Carlos Gardel)
B57: 3.17 | C57: Suministro e instalación de tuberías Ø400 Prof. < 2m | D57: m | E57: 58 | G57: =E57*F57 -> 0 | I57: =E57*H57 -> 0
B58: 3.18 | C58: Registros Tipo IM Ø1.20 Prof. < 2m | D58: u | E58: 2 | G58: =E58*F58 -> 0 | I58: =E58*H58 -> 0
B59: 3.19 | C59: Suministro e instalación de tuberías Ø300 (conexiones BT) | D59: m | E59: 19 | G59: =E59*F59 -> 0 | I59: =E59*H59 -> 0
B60: 3.2 | C60: Protección de tubería losa H.A. por debajo de -0,90 m | D60: m3 | E60: 2.3 | G60: =E60*F60 -> 0 | I60: =E60*H60 -> 0
B61: 3.21 | C61: Bocas de tormenta L 2m | D61: u | E61: 2 | G61: =E61*F61 -> 0 | I61: =E61*H61 -> 0
B62: 3.22 | C62: Colector 07 (Oficial 1 y Manuel Oribe)
B63: 3.23 | C63: Cabezal de Captación de escurrimiento | D63: u | E63: 2 | G63: =E63*F63 -> 0 | I63: =E63*H63 -> 0
B64: 3.24 | C64: Suministro e instalación de tuberías Ø500 Prof. < 2m | D64: m | E64: 19 | G64: =E64*F64 -> 0 | I64: =E64*H64 -> 0
B65: =+B64+0.01 -> 3.25 | C65: Registros Tipo IM Ø1.20 Prof. < 2m | D65: u | E65: 1 | G65: =E65*F65 -> 0 | I65: =E65*H65 -> 0
B66: 3.26 | C66: Colector 08 (Manuel Oribe y Oficial 1)
B67: =+B66+0.01 -> 3.27 | C67: Suministro e instalación de tuberías Ø400 Prof. < 2m | D67: m | E67: 8 | G67: =E67*F67 -> 0 | I67: =E67*H67 -> 0
B68: 3.28 | C68: Registros Tipo IM Ø1.20 Prof. < 2m | D68: u | E68: 1 | G68: 0 | I68: 0
B69: 3.29 | C69: Cabezal Descarga Ø400 | D69: u | E69: 1 | G69: 0 | I69: 0
B70: 3.3 | C70: Suministro e instalación de tuberías Ø300 (conexiones BT) | D70: m | E70: 46 | G70: 0 | I70: 0
B71: 3.31 | C71: Bocas de tormenta L 2m | D71: u | E71: 1 | G71: 0 | I71: 0
B72: 3.32 | C72: Bocas de tormenta L 3m | D72: u | E72: 1 | G72: 0 | I72: 0
C73: SUBTOTAL | G73: =SUM(G38:G72) -> 0 | I73: =SUM(I38:I72) -> 0
B74: 4 | C74: RED DE SANEAMIENTO
B75: 4.01 | C75: Excavación no clasificada (tosca) | D75: m3 | E75: 840 | G75: =E75*F75 -> 0 | I75: =E75*H75 -> 0
B76: 4.02 | C76: Excavación no clasificada (roca fisurada) | D76: m3 | E76: 13 | G76: 0 | I76: 0
B77: 4.03 | C77: Suministro en obra de tubería PVC200 | D77: m | E77: 417 | G77: 0 | I77: 0
B78: 4.04 | C78: Tendido de tubería PVC200 entre 0 y 2m | D78: m | E78: 254 | G78: 0 | I78: 0
B79: 4.05 | C79: Tendido de tubería PVC200 entre 2 y 3m | D79: m | E79: 163 | G79: 0 | I79: 0
B80: 4.06 | C80: Construcción de registros de primera categoría entre 0 y 2m | D80: u | E80: 5 | G80: 0 | I80: 0
B81: 4.07 | C81: Construcción de registros de primera categoría entre 2 y 3m | D81: u | E81: 2 | G81: 0 | I81: 0
B82: 4.08 | C82: Construcción de registro terminal entre 0 y 2m | D82: u | E82: 7 | G82: 0 | I82: 0
B83: 4.09 | C83: Construcción de conexiones sin cámara Nº 1 | D83: u | E83: 43 | G83: 0 | I83: 0
B84: 4.1 | C84: Construcción de cámaras Nº1 | D84: u | E84: 30 | G84: 0 | I84: 0
B85: 4.11 | C85: Suministro y coloc. de válvula anti-retorno 160 mm | D85: u | E85: 6 | G85: 0 | I85: 0
C86: SUBTOTAL | G86: =SUM(G75:G85) -> 0 | I86: =SUM(I75:I85) -> 0
B87: 5 | C87: RED DE AGUA POTABLE
B88: 5.01 | C88: Excavación no clasificada (tosca) | D88: m3 | E88: =+E89*0.5*0.8 -> 528 | G88: =E88*F88 -> 0 | I88: =E88*H88 -> 0
B89: 5.02 | C89: Suministro de tubería de alta presión PEAD fi75 | D89: m | E89: 1320 | G89: =E89*F89 -> 0 | I89: 0
B90: 5.03 | C90: Tendido de tubería (incl. excavación colocación tapado apisonado) d = 75 mm | D90: m | E90: =+E89 -> 1320 | G90: =E90*F90 -> 0 | I90: =E90*H90 -> 0
B91: 5.04 | C91: Construcción de conexiones cortas ( con materiales) | D91: u | E91: 67 | G91: =E91*F91 -> 0 | I91: =E91*H91 -> 0
B92: 5.05 | C92: Hidrante, tapa y piezas | D92: u | E92: 3 | G92: =E92*F92 -> 0 | I92: =E92*H92 -> 0
C93: SUBTOTAL | G93: =SUM(G88:G92) -> 0 | I93: =SUM(I88:I92) -> 0
B94: 6 | C94: RED DE ALUMBRADO PUBLICO
B95: 6.01 | C95: Suministro de columna de hormigón 7 m tipo 500/7.5 | D95: un | E95: 40 | G95: =E95*F95 -> 0 | I95: =E95*H95 -> 0
B96: 6.02 | C96: Suministro y colocación de brazos metálicos de soporte de luminarias | D96: un | E96: 39 | G96: 0 | I96: 0
B97: 6.03 | C97: Colocación de columna de hormigón 7 m tipo 500/7.5 | D97: un | E97: 40 | G97: 0 | I97: 0
B98: 6.04 | C98: Suministro de conductor preensamblado 3x16+54,6mm2 AI | D98: m | E98: 854 | G98: 0 | I98: 0
B99: 6.05 | C99: Tendido aéreo de conductor preensamblado 3x16+54,6mm2 Al | D99: m | E99: 854 | G99: 0 | I99: 0
B100: 6.06 | C100: Suministro de retenciones | D100: un | E100: 16 | G100: 0 | I100: 0
B101: 6,06,1 | C101: Tablero completo | D101: un | E101: 1 | G101: =E101*F101 -> 0 | I101: =E101*H101 -> 0
B102: 6.07 | C102: Suministro de suspensiones | D102: un | E102: 23 | G102: 0 | I102: 0
B103: 6.08 | C103: Colocación de conjunto de suspensión | D103: un | E103: 40 | G103: 0 | I103: 0
B104: 6.09 | C104: Retiro columnas existentes | D104: un | E104: 35 | G104: 0 | I104: 0
B105: 6.1 | C105: Suministro luminarias tipo A vial | D105: un | E105: 39 | G105: 0 | I105: 0
B106: 6.11 | C106: Colocación luminarias | D106: un | E106: 39 | G106: 0 | I106: 0
C107: SUBTOTAL | G107: =SUM(G95:G106) -> 0 | I107: =SUM(I95:I106) -> 0
B108: 8 | C108: OBRAS DE PARQUIZACIÓN Y ACOND. URBANO
B109: 8.01 | C109: Muro contención | D109: m3 | E109: 0 | G109: =E109*F109 -> 0 | I109: =E109*H109 -> 0
B110: 8.02 | C110: Forestación ,suministro y plantado de especies
B111: 8.03 | C111: Fresno h>1,50 m (incluye tierra para plantación) | D111: u | E111: 93 | G111: =E111*F111 -> 0 | I111: =E111*H111 -> 0
B112: 8.04 | C112: Relleno tierra negra esp.10 cm (para semilla césped) | D112: m3 | E112: 511 | G112: =E112*F112 -> 0 | I112: =E112*H112 -> 0
B113: 8.05 | C113: Césped canteros (semilla ) | D113: m2 | E113: 5111 | G113: =E113*F113 -> 0 | I113: =E113*H113 -> 0
B114: 8.06 | C114: Preparación superficie veredas | D114: m2 | E114: 1298 | G114: =E114*F114 -> 0 | I114: =E114*H114 -> 0
B115: 8.07 | C115: Veredas acceso viv. existentes | D115: m2 | E115: 208 | G115: =E115*F115 -> 0 | I115: =E115*H115 -> 0
C116: SUBTOTAL | G116: =SUM(G109:G115) -> 0 | I116: =SUM(I109:I115) -> 0
B117: 9 | C117: MATERIALES BAÑO NUEVO
B118: 9.01 | C118: Pedregullo | D118: m3 | E118: 1 | G118: =E118*F118 -> 0
B119: =B118+0.01 -> 9.02 | C119: Arena gruesa | D119: m3 | E119: 2 | G119: 0
B120: 9.03 | C120: Arena terciada | D120: m3 | E120: 4 | G120: 0
B121: 9.04 | C121: Mezcla gruesa | D121: m3 | E121: 0.35 | G121: 0
B122: 9.05 | C122: Hidrófugo | D122: l | E122: 12 | G122: 0
B123: 9.06 | C123: Madera de encofrado tablas | D123: u | E123: 12 | G123: 0
B124: 9.07 | C124: chapa tipo colder ( no se cotiza ver ítem 10.80 ) | D124: m2 | E124: 0 | G124: 0
B125: 9.08 | C125: Cemento portland bolsas de 25 K | D125: u | E125: 12 | G125: 0
B126: 9.09 | C126: Varilla 6mm L=6m | D126: u | E126: 7 | G126: 0
B127: 9.1 | C127: Varilla 8mm L=12m | D127: u | E127: 3 | G127: 0
B128: 9.11 | C128: Varilla 10mm L=12m | D128: u | E128: 2 | G128: 0
B129: 9.12 | C129: Clavos de 1 1/2" | D129: kg | E129: 3 | G129: 0
B130: 9.13 | C130: Bloques de hormigón vibrado 12x19x39 | D130: u | E130: 220 | G130: 0
B131: 9.14 | C131: Bloques U 12x19x39 | D131: u | E131: 35 | G131: 0
B132: 9.15 | C132: Puerta interior de madera tipo bastidor | D132: u | E132: 1 | G132: 0
B133: 9.16 | C133: Ventana de aluminio 40x60cm. corrediza | D133: u | E133: 1 | G133: 0
B134: 9.17 | C134: Ladrillos de campo | D134: u | E134: 90 | G134: 0
B135: 9.18 | C135: Pintura cielorraso | D135: l | E135: 4 | G135: 0
B136: 9.19 | C136: Pintura exterior impermeabilizante | D136: l | E136: 20 | G136: 0
B137: 9.2 | C137: Rubros de sanitaria
B138: 9.21 | C138: Caño PVC 110 | D138: u | E138: 2 | G138: =E138*F138 -> 0
B139: 9.22 | C139: Caño PVC 63 | D139: u | E139: 1 | G139: 0
B140: 9.23 | C140: Caño PVC 50 | D140: u | E140: 0 | G140: 0
B141: 9.24 | C141: Caño PVC 40 | D141: u | E141: 2 | G141: 0
B142: 9.25 | C142: Codo PVC 90º 110 | D142: u | E142: 1 | G142: 0
B143: 9.26 | C143: Codo PVC 45º 110 | D143: u | E143: 1 | G143: 0
B144: 9.27 | C144: Codo PVC 90º 40 | D144: u | E144: 3 | G144: 0
B145: 9.28 | C145: Codo PVC 45º 63 | D145: u | E145: 1 | G145: 0
B146: 9.29 | C146: Codo PVC 45º 40 | D146: u | E146: 2 | G146: 0
B147: 9.3 | C147: Ramal Y PVC 110 x 63 | D147: u | E147: 1 | G147: 0
B148: 9.31 | C148: Ramal Y PVC 110/110 | D148: u | E148: 1 | G148: 0
B149: 9.32 | C149: Sombrerete PVC 100 mm | D149: u | E149: 1 | G149: 0
B150: 9.33 | C150: Caja sifonada PVC abierta | D150: u | E150: 1 | G150: 0
B151: 9.34 | C151: Rejilla ducha plástica 10 x 10 | D151: u | E151: 1 | G151: 0
B152: 9.35 | C152: Caño PPT 1/2" | D152: u | E152: 5 | G152: 0
B153: 9.36 | C153: Codo 1/2" PPT | D153: u | E153: 10 | G153: 0
B154: 9.37 | C154: Tee 1/2" PPT | D154: u | E154: 4 | G154: 0
B155: 9.38 | C155: Llaves de paso 1/2" PPT | D155: u | E155: 2 | G155: 0
B156: 9.39 | C156: Cupla 1/2" PPT | D156: u | E156: 4 | G156: 0
B157: 9.4 | C157: Desvíos 1/2" PPT | D157: u | E157: 4 | G157: 0
B158: 9.41 | C158: Codo con rosca metálica | D158: u | E158: 7 | G158: 0
B159: 9.42 | C159: Fondo Cámara Prefabricada 60 x 60 cm | D159: u | E159: 1 | G159: 0
B160: 9.43 | C160: Cubo de hormigón 60x60 | D160: u | E160: 1 | G160: 0
B161: 9.44 | C161: Marco de hormigón con tapa y contratapa 60 x 60 cm | D161: u | E161: 1 | G161: 0
B162: 9.45 | C162: Pileta de patio de hormigón con tapa 20x20 | D162: u | E162: 0 | G162: 0
B163: 9.46 | C163: Sifón lavatorio | D163: u | E163: 1 | G163: 0
B164: 9.47 | C164: Base de goma inodoro | D164: u | E164: 1 | G164: 0
B165: 9.48 | C165: Cisterna exterior PVC Magya doble descarga con bajada y cono de goma | D165: u | E165: 1 | G165: 0
B166: 9.49 | C166: Juego grifería para baño (2 canilla lavatorio y monocomando ducha) | D166: u | E166: 1 | G166: 0
B167: 9.5 | C167: Inodoro tipo meten alpina, tacos y tornillos | D167: u | E167: 1 | G167: 0
B168: 9.51 | C168: Lavatorio con pie tipo Metzen blanco y válvula. | D168: u | E168: 1 | G168: 0
B169: 9.52 | C169: Baldosa cerámica para PARED | D169: m2 | E169: 15 | G169: 0
B170: 9.53 | C170: Baldosa cerámica para Piso | D170: m2 | E170: 4 | G170: 0
B171: 9.54 | C171: Membrana autoadhesiva (25 cm.) | D171: m | E171: 10 | G171: 0
B172: 9.55 | C172: Silicona | D172: u | E172: 1 | G172: 0
B173: 9.56 | C173: Pastina | D173: kg | E173: 5 | G173: 0
B174: 9.57 | C174: Colillas | D174: u | E174: 5 | G174: 0
B175: 9.58 | C175: Adhesivo cerámico tipo Binda | D175: 25 kg | E175: 4 | G175: 0
B176: 9.59 | C176: Cemento de albañilería (Articor) | D176: 25 kg | E176: 5 | G176: 0
B177: 9.6 | C177: Accesorios, 1 percha, 1 portarrollos, 1 jabonera con agarradera | D177: u | E177: 1 | G177: 0
B178: 9.61 | C178: Abrazadera para caño 110 | D178: u | E178: 2 | G178: 0
B179: 9.62 | C179: Tapón con rosca PPT | D179: u | E179: 5 | G179: 0
B180: 9.63 | C180: Eléctrica | G180: 0
B181: 9.64 | C181: Tablero de 6 módulos exterior | D181: u | E181: 0 | G181: 0
B182: 9.65 | C182: Cable Bg o superplástico 3x2 | D182: m | E182: 0 | G182: 0
B183: 9.66 | C183: Tacos Fisher N° 8 con tornillo y arandela | D183: u | E183: 0 | G183: 0
B184: 9.67 | C184: Disyuntor diferencial 2x25 Amp. | D184: u | E184: 0 | G184: 0
B185: 9.68 | C185: Cable 2mm forrado | D185: m | E185: 0 | G185: 0
B186: 9.69 | C186: Ducto PVC 20x15 | D186: m | E186: 0 | G186: 0
B187: 9.7 | C187: Ducto PVC 25x25 | D187: m | E187: 0 | G187: 0
B188: 9.71 | C188: Caja para brazo | D188: u | E188: 0 | G188: 0
B189: 9.72 | C189: Caño corrugado | D189: m | E189: 0 | G189: 0
B190: 9.73 | C190: Cajas de puestas eléctrica | D190: u | E190: 0 | G190: 0
B191: 9.74 | C191: Toma completo (plaqueta y módulos) | D191: u | E191: 0 | G191: 0
B192: 9.75 | C192: Interruptor con plaqueta y modulo | D192: u | E192: 0 | G192: 0
B193: 9.76 | C193: Portalámparas | D193: u | E193: 0 | G193: 0
B194: 9.77 | C194: Llave térmica | D194: u | E194: 0 | G194: 0
B195: 9.78 | C195: Cable 1mm forrado mas tierra | D195: m | E195: 0 | G195: 0
B196: 9.79 | C196: Rubros de cubierta | G196: 0
B197: 9.8 | C197: Chapa galvanizada calibre 26 (3.00 x 1.08 ) definir largo en entrega | D197: u | E197: 3 | G197: 0
B198: 9.81 | C198: Tirantes pino nacional (2 " x 6" x 3.30 ) | D198: u | E198: 5 | G198: 0
B199: 9.82 | C199: Chapa OSB 8 mm | D199: u | E199: 2 | G199: 0
B200: 9.83 | C200: Clavadores pino nacional (2 " x 2" x 3.30 ) | D200: u | E200: 5 | G200: 0
B201: 9.84 | C201: Membrana ISOLANT (manta térmica ) | D201: m2 | E201: 5 | G201: 0
B202: 9.85 | C202: Clavos para zinc con arandela goma (x100) | D202: paquete | E202: 1 | G202: 0
B203: 9.86 | C203: Clavos 3” | D203: kg | E203: 1 | G203: 0
B204: 9.87 | C204: SUBTOTAL | H204: =SUM(G118:G203) -> 0 | I204: 0
B205: 9.88 | C205: Canasta baños e instalación eléctrica
B206: 9.89 | C206: Canasta baños 100 % | D206: u | E206: 8 | F206: =+H204 -> 0 | G206: =E206*F206 -> 0
... 165 more rows
